fUST/lending_fUST_20240226
["ID","MTS","AMOUNT","RATE_DAILY","PERIOD"]
[315136084,1708876812017,1892.3868304,0.00017967,2]
[315136085,1708876824045,698.0,0.00029885,120]
[315136086,1708876824067,4429.62,0.00029885,120]
[315136171,1708877360139,233.847312,0.00017939,2]
[315136302,1708877418541,24900.0,0.00017945,2]
[315136339,1708877440085,-200.20678991,0.0001815,2]
[315136340,1708877440095,-8240.7634449,0.00018151,2]
[315136341,1708877440107,-8118.08,0.00018151,2]
[315136342,1708877440119,-21244.94808221,0.00018151,2]
[315136358,1708877441346,-302.8671087,0.00018151,2]
[315136425,1708877443190,-3838.5735618,0.00018151,2]
[315136426,1708877443210,-441.04181461,0.00018151,2]
[315136449,1708877446302,-531.542036,0.00018151,2]
[315136450,1708877446313,-1145.16705967,0.00018151,2]
[315136451,1708877446325,-12257.42650927,0.00018151,2]
[315136453,1708877511523,155.0,0.00018149,2]
[315136454,1708877525482,11825.16556764,0.0002,6]
[315136456,1708877582550,155.0,0.00018149,2]
[315136462,1708877665807,155.0,0.00018149,2]
[315136473,1708877747060,155.0,0.00018149,2]
[315136475,1708877809933,233.847312,0.00017996,2]
[315136482,1708877893068,223.9020685,0.00018004,2]
[315136488,1708878096519,926.30620594,0.00018149,2]
[315136489,1708878169506,926.30620594,0.00018149,2]
[315136491,1708878246792,926.30620594,0.00018149,2]
[315136493,1708878315520,926.30620594,0.00018149,2]
[315136592,1708878638347,-1005.98562747,0.0001815,2]
[315136594,1708878638357,-11950.25234895,0.00018151,2]
[315136596,1708878638367,-2549.55507,0.00018222,2]
[315136598,1708878638377,-663.88860088,0.000189,2]
[315136600,1708878638386,-2052.12713576,0.00018937,2]
[315136601,1708878638395,-8229.17049113,0.0001899,2]
[315136603,1708878638404,-2000.0,0.00019,2]
[315136604,1708878638413,-557.60219821,0.00019,2]
[315136606,1708878638422,-632.32387196,0.0001906,2]
[315136608,1708878638431,-208.40965641,0.00019078,2]
[315136610,1708878638441,-153.0,0.000191,2]
[315136612,1708878638450,-32530.59243622,0.00019175,2]
[315136613,1708878638462,-1541.86769022,0.00019175,2]
[315136615,1708878638473,-759.00053839,0.00019175,2]
[315136617,1708878638485,-7372.64111182,0.00019175,2]
[315136645,1708878641585,-1906.10818524,0.00019175,2]
[315136646,1708878641596,-2497.81787056,0.00019175,2]
[315136648,1708878641608,-12241.456433,0.00019175,2]
[315136649,1708878641620,-3541.25831984,0.00019175,2]
[315136650,1708878641631,-4935.0,0.00019175,2]
[315136651,1708878641644,-50030.37246325,0.00019175,2]
[315136660,1708878643338,-2110.083756,0.00019175,2]
[315136661,1708878643350,-2536.95949331,0.00019175,2]
[315136662,1708878643403,-705.58448431,0.00019175,2]
[315136663,1708878643414,-2782.5000002,0.00019175,2]
[315136670,1708878646410,-33806.41507522,0.00019175,2]
[315136671,1708878646422,-28725.80820735,0.00019175,2]
[315136672,1708878646433,-2493.70676745,0.00019175,2]
[315136673,1708878646444,-1177.39804555,0.00019175,2]
[315136710,1708879714585,-314.85758106,0.0002,6]
[315136836,1708879838506,-332.31294786,0.00018799,2]
[315136837,1708879838518,-593.99325808,0.00018799,2]
[315136838,1708879838528,-442.59240059,0.000189,2]
[315136839,1708879838537,-166.72772512,0.00019078,2]
[315136840,1708879838546,-284.37,0.00019168,3]
[315136841,1708879838555,-499.91191447,0.00019168,3]
[315136842,1708879838566,-353.19808553,0.00019168,3]
[315136843,1708879838575,-3691.03044673,0.00019175,2]
[315136844,1708879838586,-1084.5561706,0.00019175,2]
[315136855,1708879841767,-8377.23143335,0.00019175,2]
[315136856,1708879841778,-1669.03118031,0.00019175,2]
[315136857,1708879841789,-59285.82956545,0.00019175,2]
[315136858,1708879841801,-757.27006409,0.00019175,2]
[315136859,1708879841812,-353.0600004,0.00019175,2]
[315136873,1708879843547,-1897.482,0.00019175,2]
[315136874,1708879843569,-7499.34638883,0.00019175,2]
[315136875,1708879843607,-519.9999997,0.00019175,2]
[315136908,1708879846899,-952.42617288,0.00019175,2]
[315136909,1708879846911,-3565.657396,0.00019175,2]
[315136910,1708879846959,-37526.7667299,0.00019175,2]
[315136911,1708879846971,-10139.99999999,0.00019175,2]
[315136924,1708879982835,164.22477025,0.00018144,2]
[315136931,1708880065822,276.42762569,0.00018144,2]
[315136940,1708880138927,328.32492677,0.0001814,2]
[315136957,1708880326107,5748.6689999,0.00017989,2]
[315137104,1708881037665,-367.86900015,0.00018234,2]
[315137105,1708881037677,-272.25079558,0.00018234,2]
[315137106,1708881037686,-640.11979573,0.00018235,2]
[315137107,1708881037696,-677.415638,0.00018236,2]
[315137108,1708881037705,-155.19839289,0.00018239,2]
[315137109,1708881037715,-401.65165702,0.000189,2]
[315137110,1708881037724,-620.6161936,0.00019012,2]
[315137111,1708881037733,-168.55087518,0.00019078,2]
[315137112,1708881037742,-159.16,0.00019168,3]
[315137113,1708881037751,-477.52,0.00019168,3]
[315137114,1708881037760,-80059.74838886,0.00019175,2]
[315137115,1708881037773,-2359.18525206,0.00019175,2]
[315137129,1708881042758,-4112.79415247,0.00019175,2]
[315137182,1708881434078,176.6995607,0.00018175,2]
[315137253,1708882234537,-677.415638,0.00018865,2]
[315137254,1708882234546,-101.95435609,0.00018866,2]
[315137255,1708882234559,-538.16543964,0.00018866,2]
[315137256,1708882234568,-433.94675312,0.000189,2]
[315137257,1708882234577,-202.34713352,0.00019078,2]
[315137258,1708882234586,-318.32,0.00019168,3]
[315137259,1708882234595,-12816.64995967,0.00019175,2]
[315137260,1708882234607,-1826.46876881,0.00019175,2]
[315137303,1708882241036,-261.1484091,0.00019175,2]
[315137306,1708882241092,-2674.40075335,0.00019175,2]
[315137308,1708882242658,-1001.52044412,0.00019175,2]
[315137309,1708882242669,-36178.77186589,0.00019175,2]
[315137310,1708882242680,-359.50100004,0.00019175,2]
[315137311,1708882242710,-1069.88188367,0.00019175,2]
[315137312,1708882242778,-735.57418874,0.00019175,2]
[315137313,1708882242789,-4972.28774704,0.00019175,2]
[315137314,1708882242800,-5007.37460319,0.00019175,2]
[315137315,1708882242987,-2311.3043524,0.00019175,2]
[315137316,1708882242998,-1407.9999994,0.00019175,2]
[315137397,1708882245973,-12475.19534725,0.00019175,2]
[315137504,1708883432093,-677.415638,0.00018899,2]
[315137506,1708883432103,-640.11979573,0.00018899,2]
[315137508,1708883432112,-289.29783541,0.000189,2]
[315137510,1708883432121,-620.03080968,0.00018965,2]
[315137512,1708883432130,-195.63092351,0.00019078,2]
[315137514,1708883432139,-58096.0335482,0.00019175,2]
[315137540,1708883438069,-5501.03660943,0.00019175,2]
[315137638,1708883444846,-228.75,0.00019168,3]
[315137639,1708883444856,-1589.61784443,0.00019175,2]
[315137640,1708883444903,-1130.0000001,0.00019175,2]
[315137680,1708883969323,177.82123,0.00018144,2]
[315137706,1708884311455,24900.0,0.00018144,2]
[315137737,1708884632309,-640.11979573,0.00018156,2]
[315137738,1708884632319,-677.415638,0.00018156,2]
[315137739,1708884632328,-250.0,0.00018157,2]
[315137740,1708884632337,-303.65121146,0.000189,2]
[315137741,1708884632346,-188.15656442,0.00019078,2]
[315137742,1708884632356,-466.13811286,0.00019087,2]
[315137743,1708884632365,-343.13,0.00019168,3]
[315137744,1708884632374,-171.56,0.00019168,3]
[315137745,1708884632383,-514.73,0.00019168,3]
[315137746,1708884632392,-1569.4289831,0.00019175,2]
[315137762,1708884638253,-1965.1149744,0.00019175,2]
[315137763,1708884638264,-14653.09226669,0.00019175,2]
[315137764,1708884638276,-8747.89384397,0.00019175,2]
[315137765,1708884638286,-608.88135017,0.00019175,2]
[315137775,1708884641510,-5201.69915455,0.00019175,2]
[315137776,1708884641521,-1979.42258337,0.00019175,2]
[315137792,1708884644871,-1006.0,0.00019175,2]
[315137794,1708884644883,-3139.25002,0.00019175,2]
[315137796,1708884644898,-1532.3554603,0.00019175,2]
[315137859,1708884646330,-1695.2,0.00019175,2]
[315137860,1708884646386,-500.0,0.00019175,2]
[315137866,1708884827824,1000.0,0.00022,22]
[315137876,1708885233432,163.38875591,0.00018076,2]
[315137877,1708885285840,4685.5124687,0.00018105,2]
[315137878,1708885315108,155.0294556,0.00018076,2]
[315137881,1708885327169,155.71754797,0.00018105,2]
[315137956,1708885838504,-155.0294556,0.00018175,2]
[315137959,1708885838514,-2061.20022381,0.00018176,2]
[315137961,1708885838526,-1738.98776052,0.00018176,2]
[315137963,1708885838537,-898.17892701,0.00018176,2]
[315137965,1708885838546,-459.3959683,0.000189,2]
[315137967,1708885838555,-620.00154048,0.00018917,2]
[315137969,1708885838564,-736.72976923,0.00019067,2]
[315137971,1708885838573,-421.6838557,0.00019078,2]
[315137973,1708885838582,-175.0545357,0.00019078,2]
[315137975,1708885838591,-4338.95540358,0.00019078,2]
[315137989,1708885841656,-546.1335093,0.00019078,2]
[315137990,1708885841666,-74.01038751,0.00019168,3]
[315137991,1708885841677,-173.79961249,0.00019168,3]
[315137992,1708885841686,-743.45,0.00019168,3]
[315137993,1708885841696,-1013.90238683,0.00019175,2]
[315137994,1708885841707,-36114.2562947,0.00019175,2]
[315138001,1708885843543,-326.53305996,0.00019175,2]
[315138003,1708885846699,-457.5,0.00019175,2]
[315138031,1708886890303,233.363329,0.00018096,2]
[315138073,1708887032723,-1591.15140372,0.00018866,2]
[315138075,1708887032733,-640.11979573,0.00018867,2]
[315138077,1708887032742,-1787.85135726,0.0001889,2]
[315138078,1708887032752,-374.78713282,0.000189,2]
[315138080,1708887032762,-1094.73032123,0.00019,2]
[315138138,1708887038671,-739.84387877,0.00019,2]
[315138139,1708887038680,-377.78573885,0.00019078,2]
[315138140,1708887038690,-495.62,0.00019168,3]
[315138141,1708887038699,-1865.62511718,0.00019175,2]
[315138142,1708887038708,-300.0,0.00019175,2]
[315138143,1708887038718,-951.23147928,0.00019176,2]
[315138144,1708887038727,-170.20237174,0.00019176,2]
[315138145,1708887038737,-292.05315402,0.00019176,2]
[315138146,1708887038747,-155.0,0.00019176,2]
[315138147,1708887038756,-388.47861308,0.00019178,2]
[315138148,1708887038768,-111.52138692,0.00019178,2]
[315138149,1708887038777,-500.0,0.00019178,2]
[315138150,1708887038787,-301.27861308,0.00019178,2]
[315138175,1708887042004,-198.72138692,0.00019178,2]
[315138176,1708887042014,-319.09963093,0.00019178,2]
[315138177,1708887042023,-111.30681395,0.00019178,2]
[315138178,1708887042034,-336.8721682,0.00019178,2]
[315138179,1708887042045,-51.82101785,0.00019178,2]
[315138180,1708887042053,-500.0,0.00019178,2]
[315138181,1708887042062,-500.0,0.00019178,2]
[315138182,1708887042070,-319.09963093,0.00019178,2]
[315138183,1708887042078,-500.0,0.00019178,2]
[315138184,1708887042087,-500.0,0.00019178,2]
[315138185,1708887042096,-500.0,0.00019178,2]
[315138186,1708887042104,-319.09963093,0.00019178,2]
[315138187,1708887042113,-500.0,0.00019178,2]
[315138188,1708887042121,-500.0,0.00019178,2]
[315138189,1708887042130,-500.0,0.00019178,2]
[315138190,1708887042138,-500.0,0.00019178,2]
[315138191,1708887042146,-278.44329834,0.00019178,2]
[315138192,1708887042156,-500.0,0.00019178,2]
[315138193,1708887042164,-638.14783403,0.00019178,2]
[315138194,1708887042173,-167.6391983,0.00019178,2]
[315138195,1708887042182,-500.0,0.00019178,2]
[315138196,1708887042191,-500.0,0.00019178,2]
[315138197,1708887042199,-500.0,0.00019178,2]
[315138198,1708887042206,-502.42020174,0.00019178,2]
[315138199,1708887042215,-500.0,0.00019178,2]
[315138200,1708887042225,-582.12796174,0.00019178,2]
[315138201,1708887042234,-549.86995399,0.00019178,2]
[315138202,1708887042243,-500.0,0.00019178,2]
[315138203,1708887042253,-500.0,0.00019178,2]
[315138204,1708887042262,-500.0,0.00019178,2]
[315138205,1708887042272,-233.97079204,0.00019178,2]
[315138206,1708887042281,-500.0,0.00019178,2]
[315138207,1708887042290,-1083.8,0.00019178,2]
[315138208,1708887042300,-500.0,0.00019178,2]
[315138209,1708887042309,-500.0,0.00019178,2]
[315138210,1708887042319,-500.0,0.00019178,2]
[315138211,1708887042328,-501.04178024,0.00019178,2]
[315138212,1708887042338,-500.0,0.00019178,2]
[315138213,1708887042347,-500.0,0.00019178,2]
[315138214,1708887042357,-503.08381531,0.00019178,2]
[315138215,1708887042366,-614.95785219,0.00019178,2]
[315138216,1708887042492,-500.0,0.00019178,2]
[315138217,1708887042510,-500.0,0.00019178,2]
[315138218,1708887042519,-500.50799428,0.00019178,2]
[315138219,1708887042529,-500.0,0.00019178,2]
[315138220,1708887042539,-500.0,0.00019178,2]
[315138221,1708887042553,-500.0,0.00019178,2]
[315138222,1708887042562,-500.0,0.00019178,2]
[315138223,1708887042573,-500.44554136,0.00019178,2]
[315138224,1708887042583,-500.0,0.00019178,2]
[315138225,1708887042592,-502.45177139,0.00019178,2]
[315138226,1708887042602,-500.0,0.00019178,2]
[315138227,1708887042612,-500.0,0.00019178,2]
[315138228,1708887042623,-500.0,0.00019178,2]
[315138229,1708887042632,-500.0,0.00019178,2]
[315138230,1708887042642,-500.0,0.00019178,2]
[315138231,1708887042652,-417.59276965,0.00019178,2]
[315138232,1708887042661,-500.0,0.00019178,2]
[315138233,1708887042670,-500.0,0.00019178,2]
[315138234,1708887042680,-500.0,0.00019178,2]
[315138235,1708887042690,-500.0,0.00019178,2]
[315138236,1708887042699,-500.60919169,0.00019178,2]
[315138237,1708887042708,-500.0,0.00019178,2]
[315138238,1708887042718,-500.41343507,0.00019178,2]
[315138239,1708887042727,-500.0,0.00019178,2]
[315138240,1708887042736,-500.0,0.00019178,2]
[315138241,1708887042746,-500.0,0.00019178,2]
[315138242,1708887042755,-500.0,0.00019178,2]
[315138243,1708887042765,-500.0,0.00019178,2]
[315138244,1708887042774,-500.0,0.00019178,2]
[315138245,1708887042784,-500.0,0.00019178,2]
[315138246,1708887042793,-500.0,0.00019178,2]
[315138247,1708887042802,-500.0,0.00019178,2]
[315138248,1708887042811,-500.0,0.00019178,2]
[315138249,1708887042821,-500.0,0.00019178,2]
[315138250,1708887042831,-500.0,0.00019178,2]
[315138251,1708887042840,-500.0,0.00019178,2]
[315138252,1708887042850,-500.0,0.00019178,2]
[315138253,1708887042859,-500.0,0.00019178,2]
[315138254,1708887042868,-500.0,0.00019178,2]
[315138255,1708887042878,-513.27120478,0.00019178,2]
[315138256,1708887042887,-500.0,0.00019178,2]
[315138257,1708887042897,-507.85562796,0.00019178,2]
[315138258,1708887042907,-500.0,0.00019178,2]
[315138259,1708887042916,-500.0,0.00019178,2]
[315138260,1708887042926,-500.0,0.00019178,2]
[315138261,1708887042935,-500.0,0.00019178,2]
[315138262,1708887042944,-500.0,0.00019178,2]
[315138263,1708887042954,-500.0,0.00019178,2]
[315138264,1708887042963,-500.0,0.00019178,2]
[315138265,1708887042973,-500.0,0.00019178,2]
[315138266,1708887042982,-500.0,0.00019178,2]
[315138267,1708887042992,-500.0,0.00019178,2]
[315138268,1708887043002,-500.0,0.00019178,2]
[315138269,1708887043011,-500.0,0.00019178,2]
[315138270,1708887043021,-500.0,0.00019178,2]
[315138271,1708887043030,-251.671778,0.00019178,2]
[315138272,1708887043040,-251.671778,0.00019178,2]
[315138273,1708887043051,-416.28618606,0.00019178,2]
[315138274,1708887043060,-251.671778,0.00019178,2]
[315138275,1708887043069,-500.0,0.00019178,2]
[315138276,1708887043079,-251.671778,0.00019178,2]
[315138277,1708887043089,-251.671778,0.00019178,2]
[315138278,1708887043098,-500.0,0.00019178,2]
[315138279,1708887043108,-251.671778,0.00019178,2]
[315138280,1708887043117,-251.671778,0.00019178,2]
[315138281,1708887043126,-251.671778,0.00019178,2]
[315138283,1708887043136,-500.0,0.00019178,2]
[315138285,1708887043145,-251.671778,0.00019178,2]
[315138286,1708887043154,-251.671778,0.00019178,2]
[315138288,1708887043163,-251.671778,0.00019178,2]
[315138289,1708887043172,-251.671778,0.00019178,2]
[315138290,1708887043182,-251.671778,0.00019178,2]
[315138291,1708887043191,-251.671778,0.00019178,2]
[315138292,1708887043200,-198.72091705,0.00019178,2]
[315138293,1708887043210,-251.671778,0.00019178,2]
[315138294,1708887043219,-251.671778,0.00019178,2]
[315138295,1708887043229,-251.671778,0.00019178,2]
[315138296,1708887043238,-251.671778,0.00019178,2]
[315138297,1708887043248,-251.671778,0.00019178,2]
[315138298,1708887043257,-251.67177,0.00019178,2]
[315138299,1708887043266,-500.0,0.00019178,2]
[315138300,1708887043276,-500.0,0.00019178,2]
[315138301,1708887043285,-502.17446308,0.00019178,2]
[315138302,1708887043295,-500.0,0.00019178,2]
[315138303,1708887043305,-2040.54,0.00019178,2]
[315138304,1708887043315,-1013.07,0.00019178,2]
[315138305,1708887043324,-500.0,0.00019178,2]
[315138306,1708887043334,-500.0,0.00019178,2]
[315138307,1708887043344,-881.87,0.00019178,2]
[315138308,1708887043354,-342.24176169,0.00019178,2]
[315138309,1708887043363,-500.0,0.00019178,2]
[315138310,1708887043372,-500.0,0.00019178,2]
[315138311,1708887043381,-500.0,0.00019178,2]
[315138313,1708887043391,-232.63178787,0.00019178,2]
[315138315,1708887043400,-500.0,0.00019178,2]
[315138317,1708887043409,-500.0,0.00019178,2]
[315138318,1708887043418,-500.0,0.00019178,2]
[315138320,1708887043428,-405.0519369,0.00019178,2]
[315138322,1708887043437,-501.68694463,0.00019178,2]
[315138325,1708887043447,-500.0,0.00019178,2]
[315138327,1708887043456,-496.03350483,0.00019178,2]
[315138329,1708887043466,-500.0,0.00019178,2]
[315138331,1708887043475,-500.0,0.00019178,2]
[315138333,1708887043484,-500.0,0.00019178,2]
[315138335,1708887043494,-500.0,0.00019178,2]
[315138337,1708887043503,-412.07836257,0.00019178,2]
[315138339,1708887043512,-500.0,0.00019178,2]
[315138341,1708887043521,-500.0,0.00019178,2]
[315138343,1708887043530,-500.0,0.00019178,2]
[315138344,1708887043540,-1577.29,0.00019178,2]
[315138346,1708887043553,-500.0,0.00019178,2]
[315138348,1708887043563,-500.0,0.00019178,2]
[315138349,1708887043572,-1515.3,0.00019178,2]
[315138350,1708887043582,-631.02090704,0.00019178,2]
[315138352,1708887043592,-500.0,0.00019178,2]
[315138354,1708887043602,-500.0,0.00019178,2]
[315138356,1708887043611,-500.0,0.00019178,2]
[315138358,1708887043620,-500.0,0.00019178,2]
[315138359,1708887043630,-1241.74,0.00019178,2]
[315138361,1708887043638,-1755.79,0.00019178,2]
[315138363,1708887043648,-243.00605471,0.00019178,2]
[315138365,1708887043657,-500.0,0.00019178,2]
[315138367,1708887043667,-500.0,0.00019178,2]
[315138369,1708887043676,-500.0,0.00019178,2]
[315138371,1708887043686,-500.0,0.00019178,2]
[315138373,1708887043695,-500.0,0.00019178,2]
[315138375,1708887043705,-504.63311512,0.00019178,2]
[315138377,1708887043714,-500.0,0.00019178,2]
[315138379,1708887043723,-776.75,0.00019178,2]
[315138381,1708887043733,-500.0,0.00019178,2]
[315138383,1708887043743,-500.0,0.00019178,2]
[315138385,1708887043752,-1915.2,0.00019178,2]
[315138387,1708887043761,-979.34,0.00019178,2]
[315138389,1708887043770,-500.0,0.00019178,2]
[315138391,1708887043780,-500.0,0.00019178,2]
[315138393,1708887043789,-500.0,0.00019178,2]
[315138395,1708887043798,-500.0,0.00019178,2]
[315138397,1708887043807,-500.0,0.00019178,2]
[315138399,1708887043816,-500.0,0.00019178,2]
[315138400,1708887043826,-500.0,0.00019178,2]
[315138403,1708887043835,-564.38311754,0.00019178,2]
[315138405,1708887043845,-642.72383524,0.00019178,2]
[315138407,1708887043854,-500.0,0.00019178,2]
[315138411,1708887043864,-500.0,0.00019178,2]
[315138413,1708887043873,-525.99,0.00019178,2]
[315138415,1708887043882,-500.0,0.00019178,2]
[315138417,1708887043891,-544.03141441,0.00019178,2]
[315138419,1708887043901,-1224.88,0.00019178,2]
[315138421,1708887043910,-500.0,0.00019178,2]
[315138423,1708887043919,-15730.38,0.00019178,2]
[315138425,1708887043929,-500.0,0.00019178,2]
[315138427,1708887043938,-500.0,0.00019178,2]
[315138429,1708887043947,-500.0,0.00019178,2]
[315138431,1708887043956,-500.0,0.00019178,2]
[315138433,1708887043965,-442.88163336,0.00019178,2]
[315138435,1708887043974,-213.34353825,0.00019178,2]
[315138437,1708887043983,-561.17050029,0.00019178,2]
[315138439,1708887043993,-500.0,0.00019178,2]
[315138441,1708887044002,-500.0,0.00019178,2]
[315138443,1708887044011,-1177.41,0.00019178,2]
[315138445,1708887044020,-500.0,0.00019178,2]
[315138447,1708887044029,-500.0,0.00019178,2]
[315138449,1708887044039,-500.39052972,0.00019178,2]
[315138451,1708887044048,-500.0,0.00019178,2]
[315138453,1708887044056,-500.0,0.00019178,2]
[315138455,1708887044066,-5136.4,0.00019178,2]
[315138457,1708887044075,-1454.46,0.00019178,2]
[315138459,1708887044084,-500.92520509,0.00019178,2]
[315138461,1708887044093,-500.0,0.00019178,2]
[315138463,1708887044102,-2185.79,0.00019178,2]
[315138465,1708887044111,-7307.9,0.00019178,2]
[315138467,1708887044120,-500.0,0.00019178,2]
[315138469,1708887044129,-500.0,0.00019178,2]
[315138471,1708887044138,-1939.44,0.00019178,2]
[315138473,1708887044147,-500.0,0.00019178,2]
[315138475,1708887044156,-500.0,0.00019178,2]
[315138477,1708887044165,-2758.07,0.00019178,2]
[315138479,1708887044174,-500.0,0.00019178,2]
[315138481,1708887044183,-1954.09,0.00019178,2]
[315138482,1708887044193,-500.0,0.00019178,2]
[315138483,1708887044203,-500.0,0.00019178,2]
[315138485,1708887044212,-1457.19,0.00019178,2]
[315138486,1708887044221,-500.0,0.00019178,2]
[315138488,1708887044230,-1284.83907255,0.00019178,2]
[315141875,1708887472316,233.363329,0.00018081,2]
[315141879,1708887559924,8230.0382401,0.00018081,2]
[315141883,1708887670116,1591.15140372,0.0001815,2]
[315141888,1708887905151,1591.15140372,0.0001815,2]
[315141899,1708888131918,250.0,0.00018142,2]
[315141936,1708888231882,-620.00007703,0.0001887,2]
[315141938,1708888231892,-249.85808855,0.000189,2]
[315141940,1708888231903,-2506.47482395,0.00019111,2]
[315141941,1708888231912,-750.0,0.00019168,3]
[315141943,1708888231921,-300.0,0.00019177,2]
[315141945,1708888231931,-500.0,0.00019178,2]
[315141946,1708888231940,-500.0,0.00019178,2]
[315141947,1708888231949,-500.0,0.00019178,2]
[315141948,1708888231957,-319.09963093,0.00019178,2]
[315141949,1708888231966,-500.0,0.00019178,2]
[315141950,1708888231975,-500.0,0.00019178,2]
[315141952,1708888231985,-500.0,0.00019178,2]
[315141953,1708888231994,-500.0,0.00019178,2]
[315141955,1708888232003,-500.0,0.00019178,2]
[315141956,1708888232011,-500.0,0.00019178,2]
[315141958,1708888232021,-500.0,0.00019178,2]
[315141959,1708888232030,-500.0,0.00019178,2]
[315141961,1708888232039,-500.0,0.00019178,2]
[315141963,1708888232047,-500.0,0.00019178,2]
[315141965,1708888232056,-500.0,0.00019178,2]
[315141966,1708888232065,-500.0,0.00019178,2]
[315141968,1708888232075,-500.0,0.00019178,2]
[315141970,1708888232084,-500.0,0.00019178,2]
[315141971,1708888232093,-500.0,0.00019178,2]
[315141973,1708888232102,-500.0,0.00019178,2]
[315141975,1708888232112,-997.41,0.00019178,2]
[315141976,1708888232121,-500.0,0.00019178,2]
[315141978,1708888232130,-500.0,0.00019178,2]
[315141979,1708888232139,-500.0,0.00019178,2]
[315141980,1708888232148,-500.0,0.00019178,2]
[315141981,1708888232157,-500.0,0.00019178,2]
[315141982,1708888232166,-237.57198156,0.00019178,2]
[315141983,1708888232175,-500.0,0.00019178,2]
[315141984,1708888232185,-500.0,0.00019178,2]
[315141985,1708888232194,-500.0,0.00019178,2]
[315141986,1708888232203,-500.0,0.00019178,2]
[315141987,1708888232213,-500.0,0.00019178,2]
[315141988,1708888232223,-500.0,0.00019178,2]
[315141989,1708888232232,-500.0,0.00019178,2]
[315141990,1708888232242,-500.0,0.00019178,2]
[315141991,1708888232251,-500.0,0.00019178,2]
[315141992,1708888232260,-500.0,0.00019178,2]
[315141993,1708888232269,-500.0,0.00019178,2]
[315141994,1708888232278,-500.0,0.00019178,2]
[315141995,1708888232286,-500.0,0.00019178,2]
[315141996,1708888232295,-500.0,0.00019178,2]
[315141997,1708888232304,-600.0,0.00019178,2]
[315141998,1708888232312,-500.0,0.00019178,2]
[315141999,1708888232333,-1491.55,0.00019178,2]
[315142000,1708888232343,-500.0,0.00019178,2]
[315142001,1708888232353,-501.05568554,0.00019178,2]
[315142002,1708888232362,-2034.33,0.00019178,2]
[315142003,1708888232371,-883.59,0.00019178,2]
[315142004,1708888232381,-500.0,0.00019178,2]
[315142005,1708888232390,-500.0,0.00019178,2]
[315142006,1708888232399,-500.0,0.00019178,2]
[315142007,1708888232409,-500.0,0.00019178,2]
[315142008,1708888232418,-500.0,0.00019178,2]
[315142009,1708888232427,-500.0,0.00019178,2]
[315142010,1708888232438,-500.0,0.00019178,2]
[315142011,1708888232447,-500.0,0.00019178,2]
[315142012,1708888232457,-500.0,0.00019178,2]
[315142013,1708888232466,-500.0,0.00019178,2]
[315142014,1708888232477,-178.44318447,0.00019178,2]
[315142015,1708888232487,-500.0,0.00019178,2]
[315142016,1708888232497,-500.0,0.00019178,2]
[315142017,1708888232507,-500.0,0.00019178,2]
[315142018,1708888232516,-500.0,0.00019178,2]
[315142019,1708888232526,-1553.05,0.00019178,2]
[315142020,1708888232535,-1210.84,0.00019178,2]
[315142021,1708888232545,-258.11466525,0.00019178,2]
[315142022,1708888232555,-500.0,0.00019178,2]
[315142023,1708888232565,-500.0,0.00019178,2]
[315142024,1708888232575,-500.0,0.00019178,2]
[315142025,1708888232585,-500.0,0.00019178,2]
[315142026,1708888232594,-500.0,0.00019178,2]
[315142027,1708888232603,-500.0,0.00019178,2]
[315142028,1708888232613,-500.0,0.00019178,2]
[315142029,1708888232622,-500.0,0.00019178,2]
[315142030,1708888232631,-500.0,0.00019178,2]